bitfinex-derivatives/quotes_SOLF0:USTF0_20250529
["timestamp","ask_amount","ask_price","bid_price","bid_amount"]
[1748539168357,5.9418,168.27,168.24,0.039697]
[1748539168556,0.03956966,168.28,168.24,0.039697]
[1748539169459,5.9424,168.25,168.24,0.039697]
[1748539170456,5.9434,168.23,168.2,5.9535]
[1748539170764,16.42364299,168.29,168.2,5.9535]
[1748539171656,5.9428,168.24,168.23,0.04486991]
[1748539171852,0.04289994,168.26,168.2,5.9535]
[1748539172257,5.9438,168.21,168.2,1.9181]
[1748539174160,16.42364299,168.21,168.08,4.0495]
[1748539174756,16.42364299,168.25,168.08,4.0495]
[1748539175158,0.0410497,168.18,168.15,0.03964734]
[1748539175358,0.03956943,168.18,168.15,0.03964734]
[1748539175960,5.9456,168.16,168.15,0.03964734]
[1748539178161,0.03956943,168.18,168.15,0.03964734]
[1748539178756,3.8933,168.29,168.15,0.03964734]
[1748539178965,20.31694299,168.29,168.08,4.0495]
[1748539179465,5.9438,168.22,168.17,5.9449]
[1748539179666,5.9438,168.22,168.09,1.9775]
[1748539179860,0.04493762,168.17,168.14,0.04111647]
[1748539180058,16.42364299,168.29,168.14,0.0399749]
[1748539180264,2.0477,168.33,168.09,1.9775]
[1748539180265,18.47134299,168.33,168.09,1.9775]
[1748539180461,2.0477,168.33,168.09,1.9775]
[1748539180666,208.19412036,168.35,168.14,16.42364299]
[1748539180965,0.04120703,168.26,168.25,5.9422]
[1748539181162,0.04088377,168.27,168.25,5.9422]
[1748539181464,0.03963597,168.28,168.25,5.9422]
[1748539181661,0.04140292,168.28,168.25,0.03828922]
[1748539181859,18.49584299,168.37,168.25,1.94178922]
[1748539182170,5.9398,168.33,168.25,1.9035]
[1748539182666,5.9398,168.33,168.29,5.9408]
[1748539182969,5.98168606,168.33,168.29,5.98228607]
[1748539183169,0.04188606,168.33,168.29,0.04148607]
[1748539183564,0.04188606,168.33,168.3,5.9406]
[1748539183764,0.04188606,168.33,168.29,0.04148607]
[1748539183957,0.04188606,168.33,168.29,5.98238607]
[1748539184358,0.04188606,168.33,168.29,0.04148607]
[1748539184971,5.9403,168.31,168.29,0.04148607]
[1748539185367,5.9401,168.32,168.29,0.04148607]
[1748539185564,0.04188606,168.33,168.29,0.04148607]
[1748539185871,0.04188606,168.33,168.3,5.9404]
[1748539186260,0.04188606,168.33,168.29,0.04148607]
[1748539187268,5.9402,168.32,168.29,0.04148607]
[1748539187469,0.04188606,168.33,168.29,0.04148607]
[1748539188872,5.9402,168.32,168.29,0.04148607]
[1748539189070,0.04188606,168.33,168.29,0.04148607]
[1748539189475,5.9404,168.31,168.29,0.04148607]
[1748539189672,0.04188606,168.33,168.29,0.04148607]
[1748539189871,5.94,168.32,168.29,0.04148607]
[1748539190378,0.04188606,168.33,168.29,0.04148607]
[1748539191583,0.04188606,168.33,168.32,5.9399]
[1748539192175,5.9382,168.37,168.33,5.9395]
[1748539192583,16.42364299,168.43,168.26,1.9385]
[1748539192783,5.938,168.38,168.26,1.9385]
[1748539193382,5.9382,168.37,168.3,0.04132334]
[1748539193574,0.04492097,168.35,168.32,0.03802595]
[1748539195584,0.04492097,168.35,168.33,5.9395]
[1748539196384,5.98382097,168.35,168.32,5.97782595]
[1748539196583,5.98382097,168.35,168.32,0.03802595]
[1748539197388,5.9394,168.34,168.32,0.03802595]
[1748539197996,5.98392097,168.35,168.32,5.97792595]
[1748539198487,5.9393,168.34,168.32,0.03802595]
[1748539199391,5.9396,168.33,168.32,0.03802595]
[1748539199898,5.9394,168.34,168.32,0.03802595]
[1748539201190,5.9396,168.33,168.32,0.03802595]
[1748539201595,0.04492097,168.35,168.26,5.942]
[1748539201790,28.29894299,168.39,168.26,5.942]
[1748539202091,5.9409,168.3,168.26,5.942]
[1748539202288,5.9409,168.3,168.25,1.9035]
[1748539202289,28.29894299,168.39,168.25,1.9035]
[1748539202496,0.04287706,168.34,168.3,0.04528494]
[1748539203296,5.9403,168.31,168.3,0.04528494]
[1748539204692,0.04287706,168.34,168.3,0.04528494]
[1748539205099,0.04287706,168.34,168.33,5.9396]
[1748539205291,4.058,168.43,168.31,1.9816]
[1748539205490,4.058,168.43,168.32,2.0605]
[1748539206295,5.98030611,168.39,168.36,5.9762499]
[1748539206502,0.04270611,168.39,168.36,5.9762499]
[1748539206698,0.04270611,168.39,168.36,0.0379499]
[1748539207089,0.04270611,168.39,168.36,5.9762499]
[1748539207897,5.9378,168.38,168.36,0.0379499]
[1748539208097,0.04270611,168.39,168.36,0.0379499]
[1748539208499,0.04270611,168.39,168.38,5.9378]
[1748539210096,0.04270611,168.39,168.36,0.0379499]
[1748539210598,0.04270611,168.39,168.37,5.9382]
[1748539211101,5.98020611,168.39,168.36,0.0379499]
[1748539211299,0.04270611,168.39,168.36,0.0379499]
[1748539212302,5.9382,168.37,168.36,0.0379499]
[1748539214401,0.04270611,168.39,168.28,5.9411]
[1748539214606,2.0308,168.38,168.27,1.9248]
[1748539215003,5.9401,168.32,168.29,5.9409]
[1748539215205,2.0308,168.38,168.27,1.9248]
[1748539215405,0.04115027,168.34,168.31,0.04303797]
[1748539215705,5.94,168.32,168.31,0.04303797]
[1748539216005,0.04115027,168.34,168.22,1.9255]
[1748539216200,5.9408,168.3,168.26,5.9418]
[1748539216411,16.42364299,168.37,168.22,1.9255]
[1748539217003,0.04043552,168.31,168.28,0.04013116]
[1748539217404,5.9408,168.3,168.28,0.04013116]
[1748539217604,0.04043552,168.31,168.28,0.04013116]
[1748539218106,5.941,168.29,168.28,0.04013116]
[1748539218510,5.9407,168.3,168.28,0.04013116]
[1748539218712,0.04043552,168.31,168.28,0.04013116]
[1748539219012,0.04043552,168.31,168.29,5.9407]
[1748539219202,0.04043552,168.31,168.28,0.04013116]
[1748539221714,5.98093552,168.31,168.28,5.98123116]
[1748539221907,0.04043552,168.31,168.28,0.04013116]
[1748539222512,5.98083552,168.31,168.28,5.98123116]
[1748539223208,0.04043552,168.31,168.29,5.9409]
[1748539223409,0.04043552,168.31,168.28,0.04013116]
[1748539225913,5.9409,168.3,168.28,0.04013116]
[1748539226112,0.04043552,168.31,168.28,0.04013116]
[1748539226311,0.04043552,168.31,168.29,5.9407]
[1748539226613,0.04043552,168.31,168.28,0.04013116]
[1748539226822,0.04043552,168.31,168.3,5.9406]
[1748539227115,0.04043552,168.31,168.28,0.04013116]
[1748539227709,0.04043552,168.31,168.3,5.9406]
[1748539228007,1.9844,168.4,168.28,0.04013116]
[1748539228205,5.9383,168.37,168.22,18.34914299]
[1748539228711,1.9844,168.4,168.25,11.8848]
[1748539229110,0.0395304,168.34,168.31,0.04137992]
[1748539229308,0.0395304,168.34,168.33,5.9393]
[1748539229715,0.0395304,168.34,168.31,0.04137992]
[1748539230113,5.9397,168.33,168.31,0.04137992]
[1748539230314,0.0395304,168.34,168.31,0.04137992]
[1748539230716,5.9397,168.33,168.31,0.04137992]
[1748539230914,0.0395304,168.34,168.31,0.04137992]
[1748539231815,1.9277,168.42,168.31,0.04137992]
[1748539232014,1.9277,168.42,168.27,4.0023]
[1748539232220,5.9365,168.42,168.39,5.9372]
[1748539232815,5.97953593,168.42,168.39,5.98191283]
[1748539233314,0.04303593,168.42,168.39,0.04471283]
[1748539234017,0.04303593,168.42,168.41,5.9368]
[1748539235717,1.9024,168.52,168.39,0.04471283]
[1748539235918,1.9024,168.52,168.35,2.052]
[1748539236424,1.9024,168.52,168.43,5.936]
[1748539236722,0.04080226,168.49,168.46,0.03887057]
[1748539236921,0.04429978,168.49,168.46,0.04147179]
[1748539237321,5.9349,168.47,168.46,0.04147179]
[1748539239018,0.04429978,168.49,168.46,0.04147179]
[1748539239019,5.9344,168.48,168.46,0.04147179]
[1748539239225,0.04429978,168.49,168.46,0.04147179]
[1748539239623,5.9344,168.48,168.46,0.04147179]
[1748539241126,0.04429978,168.49,168.46,0.04147179]
[1748539241827,0.04429978,168.49,168.37,1.9632]
[1748539242018,16.42364299,168.53,168.37,1.9632]
[1748539242816,5.9358,168.44,168.43,0.04036846]
[1748539245633,5.9353,168.46,168.43,0.04036846]
[1748539246030,0.04204879,168.47,168.43,0.04036846]
[1748539246221,5.9357,168.45,168.43,0.04036846]
[1748539246421,0.04204879,168.47,168.43,0.04036846]
[1748539246631,5.9357,168.44,168.43,0.04036846]
[1748539250940,5.9379,168.38,168.35,5.9388]
[1748539251436,6.2295,168.49,168.36,5.9386]
[1748539251633,6.2295,168.49,168.31,5.8778]
[1748539252035,5.97958208,168.42,168.38,5.98079963]
[1748539252238,5.97958208,168.42,168.38,5.97866127]
[1748539252634,5.9368,168.41,168.38,0.04116127]
[1748539252840,0.04278208,168.42,168.38,0.04116127]
[1748539253240,5.9369,168.41,168.38,0.04116127]
[1748539253943,5.97928208,168.42,168.38,0.04116127]
[1748539254339,5.97928208,168.42,168.4,5.9371]
[1748539254540,0.04278208,168.42,168.4,5.9371]
[1748539254741,0.04278208,168.42,168.38,0.04116127]
[1748539255537,0.04278208,168.42,168.4,5.9369]
[1748539255739,0.04278208,168.42,168.38,0.04116127]
[1748539256237,2.0042,168.54,168.44,5.9355]
[1748539256442,5.9873,168.54,168.44,5.9355]
[1748539257047,0.04385251,168.51,168.47,0.03931806]
[1748539257436,5.9343,168.48,168.47,0.03931806]
[1748539260745,5.9341,168.49,168.47,0.03931806]
[1748539260943,0.04385251,168.51,168.47,0.03931806]
[1748539261749,0.04385251,168.51,168.48,5.9343]
[1748539262653,0.04385251,168.51,168.47,0.03931806]
[1748539263150,0.04385251,168.51,168.5,5.9336]
[1748539264345,5.932,168.55,168.52,5.9327]
[1748539264548,5.9317,168.56,168.48,6.0942]
[1748539264747,4.0069,168.64,168.48,6.0942]
[1748539265341,5.9321,168.55,168.54,0.04212244]
[1748539266450,0.04016187,168.58,168.54,0.04212244]
[1748539267154,5.9314,168.57,168.54,0.04212244]
[1748539267347,0.04016187,168.58,168.54,0.04212244]
[1748539267749,5.9319,168.55,168.54,0.04212244]
[1748539269754,0.04016187,168.58,168.54,0.04212244]
[1748539270153,5.9314,168.57,168.55,5.9318]
[1748539270353,5.9314,168.57,168.54,0.04212244]
[1748539270754,5.9314,168.57,168.55,5.9318]
[1748539271061,0.04016187,168.58,168.54,0.04212244]
[1748539272451,5.9293,168.63,168.54,0.04212244]
[1748539272651,4.0364,168.68,168.53,16.38602575]
[1748539273053,1.9237,168.7,168.53,16.38602575]
[1748539273459,0.04430926,168.63,168.6,0.03852979]
[1748539273659,0.03899757,168.63,168.6,0.03852979]
[1748539274867,0.03899757,168.63,168.62,5.9294]
[1748539275767,5.9272,168.69,168.65,5.9282]
[1748539276063,349.0,168.87,168.61,3.9411]
[1748539276276,5.9257,168.73,168.61,20.32712575]
[1748539276564,4.0069,168.77,168.61,20.32712575]
[1748539276767,0.0417779,168.71,168.7,5.9266]
[1748539276963,0.04349408,168.72,168.69,0.03798398]
[1748539277267,0.04349408,168.72,168.69,0.04041135]
[1748539277268,0.04441755,168.72,168.69,0.04041135]
[1748539277566,0.04441755,168.72,168.71,5.9262]
[1748539277769,0.04441755,168.72,168.69,0.04041135]
[1748539278670,2.1073,168.81,168.69,0.04041135]
[1748539278861,5.9237,168.79,168.66,1.9982]
[1748539279065,2.1073,168.81,168.66,1.9982]
[1748539279468,2.1073,168.81,168.74,5.9251]
[1748539279664,2.1073,168.81,168.76,0.04483674]
[1748539279860,2.1073,168.81,168.77,0.04007393]
[1748539280063,2.1073,168.81,168.66,1.9982]
[1748539280460,2.1073,168.81,168.72,0.04365441]
[1748539282168,2.1073,168.81,168.73,5.9253]
[1748539282466,2.1073,168.81,168.72,0.04365441]
[1748539283170,5.9247,168.76,168.72,5.96945441]
[1748539283571,2.1073,168.81,168.72,0.04365441]
[1748539283972,5.9241,168.78,168.72,0.04365441]
[1748539284466,18.44692575,168.85,168.74,5.9251]
[1748539284661,18.44692575,168.85,168.78,0.03877118]
[1748539284971,2.0609,168.85,168.78,0.03877118]
[1748539285566,11.8368,168.94,168.78,0.03877118]
[1748539285775,6.0027,168.9,168.83,0.04113842]
[1748539285970,6.0027,168.9,168.85,0.04556018]
[1748539286274,6.0027,168.9,168.86,0.03939121]
[1748539286481,6.0027,168.9,168.86,0.04061602]
[1748539286772,3.9687,168.9,168.86,0.04061602]
[1748539287175,5.9206,168.87,168.86,0.04061602]
[1748539287870,5.9221,168.83,168.76,5.8311]
[1748539288173,5.9221,168.83,168.78,5.9235]
[1748539288568,3.9687,168.9,168.78,5.9235]
[1748539288769,3.9687,168.9,168.77,5.9239]
[1748539288966,0.04315305,168.85,168.66,11.856]
[1748539289172,16.38602575,168.87,168.67,22.17252575]
[1748539289366,2.085,168.86,168.67,22.17252575]
[1748539289571,5.9236,168.79,168.67,22.17252575]
[1748539289776,5.9236,168.79,168.75,5.9246]
[1748539290076,5.96732527,168.79,168.75,5.96675442]
[1748539290673,5.96732527,168.79,168.75,0.04215442]
[1748539290674,0.04362527,168.79,168.75,0.04215442]
[1748539290972,0.04362527,168.79,168.75,5.96695442]
[1748539291473,0.04362527,168.79,168.75,0.04215442]
[1748539292074,5.9244,168.77,168.75,0.04215442]
[1748539292469,0.04362527,168.79,168.75,0.04215442]
[1748539293075,0.04362527,168.79,168.78,5.9238]
[1748539293478,0.04362527,168.79,168.75,0.04215442]
[1748539294377,0.04362527,168.79,168.78,5.9238]
[1748539294880,0.04362527,168.79,168.77,5.924]
[1748539295181,0.04362527,168.79,168.75,0.04215442]
[1748539295375,5.96732527,168.79,168.75,0.04215442]
[1748539295581,5.96732527,168.79,168.76,5.9244]
[1748539295976,0.04362527,168.79,168.75,0.04215442]
[1748539297985,0.04362527,168.79,168.78,5.9238]
[1748539298281,3.9687,168.9,168.76,6.0013]
[1748539298484,5.9213,168.86,168.82,5.9223]
[1748539298881,3.9687,168.9,168.82,5.9223]
[1748539299076,0.04438576,168.88,168.84,0.04320594]
[1748539299787,5.9214,168.85,168.84,0.04320594]
[1748539300889,0.04438576,168.88,168.84,0.04320594]
[1748539304592,5.9212,168.86,168.84,0.04320594]
[1748539305385,5.9214,168.85,168.84,0.04320594]
[1748539307993,5.9211,168.86,168.84,0.04320594]
[1748539308194,0.04438576,168.88,168.84,0.04320594]
[1748539308494,5.96498576,168.88,168.85,5.9213]
[1748539308793,0.04438576,168.88,168.84,0.04320594]
[1748539310086,0.04438576,168.88,168.84,5.96480594]
[1748539310690,0.04438576,168.88,168.84,0.04320594]
[1748539311691,5.921,168.86,168.84,0.04320594]
[1748539311896,0.04438576,168.88,168.84,0.04320594]
[1748539313789,0.04438576,168.88,168.87,5.9207]
[1748539314396,5.9334,168.95,168.84,0.04320594]
[1748539314589,5.9334,168.95,168.81,16.38602575]
[1748539314590,3.9821,168.95,168.81,16.38602575]
[1748539314793,5.9186,168.93,168.9,5.9193]
[1748539314996,5.9186,168.93,168.81,16.38602575]
[1748539315200,3.9821,168.95,168.81,16.38602575]
[1748539315398,5.919,168.92,168.9,5.9196]
[1748539315801,5.919,168.92,168.89,0.04327194]
[1748539316099,3.9821,168.95,168.89,0.04327194]
[1748539316398,207.05612901,168.99,168.89,0.04327194]
[1748539316696,5.9185,168.94,168.91,5.9192]
[1748539316890,5.9185,168.94,168.91,0.04203052]
[1748539317092,5.9185,168.94,168.91,5.96123052]
[1748539317289,5.9179,168.95,168.91,0.04203052]
[1748539318297,5.9182,168.94,168.91,0.04203052]
[1748539318699,5.9182,168.94,168.91,5.96103052]
[1748539318899,5.9187,168.93,168.91,0.04203052]
[1748539319094,2.0579,169.0,168.91,0.04203052]
[1748539319297,18.44392575,169.0,168.91,0.04203052]
[1748539319494,5.9189,168.92,168.91,0.04203052]
[1748539320305,18.44392575,169.0,168.8,5.9687]
[1748539320702,16.38602575,168.96,168.82,5.9222]
[1748539321006,2.0579,169.0,168.75,28.23532575]
[1748539321210,17.81,168.99,168.8,5.923]
[1748539321412,5.9207,168.87,168.86,0.04429067]
[1748539321704,0.03821374,168.88,168.85,0.04325608]
[1748539321903,2.10271656,168.88,168.85,0.03879558]
[1748539322105,5.921,168.86,168.85,0.03879558]
[1748539323106,5.9224,168.83,168.79,5.9234]
[1748539323406,5.9224,168.83,168.71,16.38602575]
[1748539323407,18.44762575,168.88,168.71,3.44703679]
[1748539323599,18.44762575,168.88,168.72,2.5942223]
[1748539323907,18.44762575,168.88,168.71,9.52933679]
[1748539324303,0.04036345,168.81,168.78,0.03788275]
[1748539324502,0.03834109,168.81,168.78,0.03788275]
[1748539324703,5.96134109,168.81,168.78,0.03788275]
[1748539325705,5.96134109,168.81,168.78,5.96158275]
[1748539325911,0.03834109,168.81,168.78,0.03788275]
[1748539326310,0.03834109,168.81,168.8,5.9231]
[1748539329606,0.03834109,168.81,168.79,5.9234]
[1748539330005,0.03834109,168.81,168.78,0.03788275]
[1748539330206,0.03834109,168.81,168.78,5.96158275]
[1748539330407,5.9232,168.8,168.78,0.03788275]
[1748539330712,0.03834109,168.81,168.78,5.96168275]
[1748539330907,0.03834109,168.81,168.78,0.03788275]
[1748539331416,0.03834109,168.81,168.8,5.9231]
[1748539332622,0.03834109,168.81,168.79,5.9234]
[1748539332819,0.03834109,168.81,168.78,0.03788275]
[1748539333920,0.03834109,168.81,168.8,5.9231]
[1748539335121,0.03834109,168.81,168.78,0.03788275]
[1748539336027,5.9231,168.8,168.78,0.03788275]
[1748539336220,0.03834109,168.81,168.78,0.03788275]
[1748539336820,5.9249,168.76,168.73,5.9255]
[1748539337529,4.0198,168.82,168.63,11.858]
[1748539337829,0.04346778,168.74,168.71,0.04156118]
[1748539338020,5.9258,168.73,168.71,0.04431622]
[1748539338523,5.926,168.72,168.71,0.04431622]
[1748539339328,5.9257,168.73,168.71,0.04431622]
[1748539339828,0.04303495,168.74,168.71,0.04431622]
[1748539340722,0.04303495,168.74,168.72,5.9259]
[1748539341227,0.04303495,168.74,168.71,0.04431622]
[1748539342322,5.926,168.72,168.71,0.04431622]
[1748539342929,5.9269,168.7,168.66,5.9278]
[1748539343221,1.962,168.73,168.64,5.9925]
[1748539343626,5.9267,168.7,168.67,5.9276]
[1748539344023,0.03889415,168.7,168.67,0.04225481]
[1748539344327,0.03889415,168.7,168.68,5.9271]
[1748539344531,0.03889415,168.7,168.67,0.04225481]
[1748539344729,0.03889415,168.7,168.68,5.9271]
[1748539345631,0.03889415,168.7,168.67,5.96985481]
[1748539345831,0.03889415,168.7,168.67,0.04225481]
[1748539347028,5.9273,168.69,168.67,0.04225481]
[1748539347829,0.03889415,168.7,168.67,0.04225481]
[1748539348031,0.03889415,168.7,168.67,5.96985481]
[1748539348228,0.03889415,168.7,168.67,0.04225481]
[1748539348531,5.96589415,168.7,168.67,0.04225481]
[1748539348920,0.03889415,168.7,168.67,0.04225481]
[1748539349925,0.03889415,168.7,168.51,11.8662]
[1748539350126,1.9324,168.7,168.53,3.9125]
[1748539350537,5.9297,168.62,168.53,3.9125]
[1748539350931,0.04555726,168.59,168.56,0.03890227]
[1748539351331,0.04555726,168.59,168.58,5.9309]
[1748539352329,0.04555726,168.59,168.57,5.9311]
[1748539352532,0.04555726,168.59,168.56,0.03890227]
[1748539354332,0.04555726,168.59,168.56,5.97020227]
[1748539354841,0.04555726,168.59,168.56,0.03890227]
[1748539355335,0.04555726,168.59,168.58,5.9309]
[1748539355734,7.8294,168.65,168.61,5.9296]
[1748539355926,3.9151,168.7,168.53,3.9125]
[1748539356131,2.0364,168.69,168.53,3.9125]
[1748539356529,5.9295,168.62,168.59,5.9303]
[1748539356730,0.04180989,168.62,168.59,0.04350502]
[1748539357139,0.04180989,168.62,168.59,5.97370502]
[1748539357344,0.04180989,168.62,168.59,0.04350502]
[1748539357642,5.97160989,168.62,168.59,0.04350502]
[1748539358436,5.97160989,168.62,168.59,5.97400502]
[1748539358643,0.04180989,168.62,168.59,0.04350502]
[1748539359239,5.9302,168.6,168.59,0.04350502]
[1748539361343,5.9302,168.6,168.59,0.04350502]
[1748539363543,0.04180989,168.62,168.52,1.9915]
[1748539363736,11.8567,168.66,168.52,1.9915]
[1748539364350,2.0364,168.69,168.52,1.9915]
[1748539364646,5.9302,168.61,168.59,0.04426033]
[1748539364848,0.04125554,168.62,168.59,0.04426033]
[1748539365143,5.9298,168.61,168.59,0.04426033]
[1748539365441,0.04125554,168.62,168.59,0.04426033]
[1748539365947,5.9302,168.6,168.59,0.04426033]
[1748539366341,0.04125554,168.62,168.59,0.04426033]
[1748539367143,5.9298,168.61,168.59,0.04426033]
[1748539367548,0.04125554,168.62,168.59,0.04426033]
[1748539367847,5.9298,168.61,168.59,0.04426033]
[1748539368246,5.97095554,168.62,168.59,0.04426033]
[1748539368451,0.04125554,168.62,168.59,0.04426033]
[1748539368943,5.9302,168.6,168.59,0.04426033]
[1748539369350,0.04125554,168.62,168.59,0.04426033]
[1748539369749,5.9302,168.6,168.59,0.04426033]
[1748539371759,5.9299,168.61,168.59,0.04426033]
[1748539372245,0.04125554,168.62,168.59,0.04426033]
[1748539373552,0.04125554,168.62,168.61,5.9298]
[1748539373949,5.9278,168.67,168.63,5.9291]
[1748539374252,218.94009342,168.75,168.6,3.9837]
[1748539374253,1.914,168.74,168.6,3.9837]
[1748539374652,5.9277,168.67,168.64,5.9287]
[1748539374849,1.914,168.74,168.61,10.0394347]
[1748539375250,0.04402377,168.69,168.66,5.96779324]
[1748539375548,0.04402377,168.69,168.66,0.03989324]
[1748539375745,5.9273,168.68,168.66,0.03989324]
[1748539375951,0.04402377,168.69,168.66,0.03989324]
[1748539376350,0.04402377,168.69,168.67,5.9277]
[1748539376752,0.04402377,168.69,168.67,5.9274]
[1748539378347,0.04402377,168.69,168.66,5.96779324]
[1748539378549,0.04402377,168.69,168.66,0.03989324]
[1748539379652,0.04402377,168.69,168.67,5.9274]
[1748539380059,0.04402377,168.69,168.66,0.03989324]
[1748539380357,5.9277,168.67,168.66,0.03989324]
[1748539382165,5.9276,168.68,168.66,0.03989324]
[1748539383057,5.9277,168.67,168.66,0.03989324]
[1748539385156,0.04402377,168.69,168.66,0.03989324]
[1748539385557,5.9273,168.68,168.66,0.03989324]
[1748539385763,0.04402377,168.69,168.66,0.03989324]
[1748539386156,5.9277,168.67,168.66,0.03989324]
[1748539386760,0.04402377,168.69,168.66,0.03989324]
[1748539387657,5.9274,168.68,168.66,0.03989324]
[1748539387853,0.04402377,168.69,168.66,0.03989324]
[1748539388458,5.9274,168.68,168.66,0.03989324]
[1748539389963,5.97112377,168.69,168.66,5.96789324]
[1748539390261,5.97112377,168.69,168.66,0.03989324]
[1748539390463,0.04402377,168.69,168.66,0.03989324]
[1748539391465,5.9277,168.67,168.66,0.03989324]
[1748539394462,0.04402377,168.69,168.51,11.8666]
[1748539394667,3.8744,168.68,168.6,5.9301]
[1748539394870,3.8744,168.68,168.55,3.8828]
[1748539395071,5.9287,168.65,168.55,3.8828]
[1748539395369,16.33850459,168.71,168.55,3.8828]
[1748539395567,0.04540824,168.62,168.58,0.03930402]
[1748539395759,0.04540824,168.62,168.58,0.04356643]
[1748539395760,0.04156307,168.62,168.58,0.04356643]
[1748539396971,0.04156307,168.62,168.61,5.9298]
[1748539399863,3.8744,168.72,168.65,5.9283]
[1748539400063,5.9275,168.68,168.65,5.9283]
[1748539400667,3.8744,168.72,168.65,0.04556349]
[1748539400867,0.03998319,168.68,168.65,0.04556349]
[1748539401371,5.928,168.66,168.65,0.04556349]
[1748539408675,0.03998319,168.68,168.59,1.9877]
[1748539408872,21.88682717,168.7,168.59,1.9877]
[1748539409280,10.03322717,168.67,168.55,3.8828]
[1748539409981,10.03322717,168.67,168.59,0.04152646]
[1748539409982,5.96839226,168.63,168.59,0.04152646]
[1748539411282,0.03929226,168.63,168.59,0.04152646]
[1748539411777,5.9298,168.62,168.59,0.04152646]
[1748539412184,0.03929226,168.63,168.59,0.04152646]
[1748539412484,5.9302,168.6,168.59,0.04152646]
[1748539422584,0.03929226,168.63,168.59,0.04152646]
[1748539424288,5.9302,168.6,168.59,0.04152646]
[1748539426487,0.03929226,168.63,168.59,0.04152646]
[1748539427993,5.9302,168.6,168.59,0.04152646]
[1748539432089,10.07251943,168.63,168.51,6.0415]
[1748539432090,5.9312,168.57,168.51,6.0415]
[1748539432291,10.03322717,168.63,168.51,4.1368]
[1748539432498,5.9308,168.59,168.55,5.9319]
[1748539432686,10.03322717,168.63,168.51,4.1368]
[1748539433085,0.03902079,168.59,168.56,5.9312]
[1748539433690,0.03902079,168.59,168.55,0.04125481]
[1748539434297,0.03902079,168.59,168.58,5.9309]
[1748539436600,0.03902079,168.59,168.55,0.04125481]
[1748539436795,5.96972079,168.59,168.55,0.04125481]
[1748539437601,5.96972079,168.59,168.56,5.9313]
[1748539438405,5.9309,168.58,168.55,5.97305481]
[1748539438599,0.03902079,168.59,168.55,0.04125481]
[1748539439001,5.9316,168.56,168.55,0.04125481]
[1748539448411,0.03902079,168.59,168.55,0.04125481]
[1748539448908,5.931,168.58,168.55,5.97295481]
[1748539449718,5.96962079,168.59,168.56,5.9315]
[1748539449909,0.03902079,168.59,168.55,0.04125481]
[1748539450909,0.03902079,168.59,168.57,5.931]
[1748539451213,0.03902079,168.59,168.55,0.04125481]
[1748539452108,0.03902079,168.59,168.58,5.9309]
[1748539453317,0.03902079,168.59,168.57,5.9311]
[1748539453912,0.03902079,168.59,168.58,5.9309]
[1748539455512,0.03902079,168.59,168.55,0.04125481]
[1748539456917,0.03902079,168.59,168.58,5.9309]
[1748539457511,0.03902079,168.59,168.57,5.931]
[1748539458608,0.03902079,168.59,168.55,0.04125481]
[1748539459211,5.9315,168.57,168.55,0.04125481]
[1748539459406,0.03902079,168.59,168.55,0.04125481]
[1748539460411,0.03902079,168.59,168.56,5.9314]
[1748539460920,0.03902079,168.59,168.55,0.04125481]
[1748539461510,0.03902079,168.59,168.56,5.9312]
[1748539461715,0.03902079,168.59,168.55,0.04125481]
[1748539461917,5.96972079,168.59,168.55,0.04125481]
[1748539462114,5.96972079,168.59,168.55,5.97285481]
[1748539463219,0.03902079,168.59,168.55,0.04125481]
[1748539463712,0.03902079,168.59,168.57,5.9312]
[1748539463911,0.03902079,168.59,168.55,0.04125481]
[1748539465314,0.03902079,168.59,168.57,5.931]
[1748539465820,0.03902079,168.59,168.58,5.9309]
[1748539468019,10.03322717,168.68,168.6,5.9298]
[1748539468219,5.9292,168.63,168.6,5.9298]
[1748539468915,5.96693391,168.63,168.6,5.9713924]
[1748539469120,0.03773391,168.63,168.6,0.0415924]
[1748539469516,0.03773391,168.63,168.62,5.9294]
[1748539469820,3.9715,168.7,168.6,0.0415924]
[1748539470121,3.9715,168.7,168.6,2.0307924]
[1748539470320,3.9715,168.7,168.63,5.9291]
[1748539470714,5.928,168.67,168.65,0.04308643]
[1748539471313,0.04084282,168.68,168.65,0.04308643]
[1748539471721,5.928,168.66,168.65,0.04308643]
[1748539478131,0.04084282,168.68,168.65,0.04308643]
[1748539478820,5.9279,168.67,168.65,0.04308643]
[1748539479420,0.04084282,168.68,168.65,0.04308643]
[1748539479625,3.9642,168.76,168.65,0.04308643]